bitfinex/quotes_BTCUSD_20250904
["timestamp","ask_amount","ask_price","bid_price","bid_amount"]
[1757027775413,1.63051346,111610.0,111600.0,1.00314075]
[1757027775646,1.78215346,111610.0,111600.0,1.00314075]
[1757027775851,1.46949922,111610.0,111600.0,1.00314075]
[1757027777183,1.31785922,111610.0,111600.0,1.00314075]
[1757027777418,1.46949922,111610.0,111600.0,1.00314075]
[1757027779627,1.78215346,111610.0,111600.0,1.00314075]
[1757027780286,1.80414596,111610.0,111600.0,1.00314075]
[1757027781122,1.80414596,111610.0,111600.0,0.47732616]
[1757027781123,1.96210195,111610.0,111600.0,0.47732616]
[1757027781365,1.99824784,111610.0,111600.0,0.24918781]
[1757027781574,1.99824784,111610.0,111560.0,0.15164001]
[1757027781575,0.51925965,111570.0,111560.0,0.15164001]
[1757027781782,1.29620813,111570.0,111560.0,0.15238001]
[1757027782192,1.32315832,111570.0,111560.0,0.15238001]
[1757027782408,1.67958828,111570.0,111560.0,1e-08]
[1757027782622,1.70158078,111570.0,111560.0,1e-08]
[1757027783047,1.70262808,111570.0,111560.0,0.00400001]
[1757027783254,1.70262808,111570.0,111560.0,1e-08]
[1757027783255,1.70162808,111570.0,111560.0,1e-08]
[1757027783460,1.55098808,111570.0,111560.0,1e-08]
[1757027783670,1.70362808,111570.0,111560.0,0.00300001]
[1757027785997,1.55198808,111570.0,111560.0,0.00300001]
[1757027786212,1.70358808,111570.0,111560.0,0.00300001]
[1757027787493,1.55198808,111570.0,111560.0,0.00300001]
[1757027787713,1.91081289,111570.0,111560.0,1e-08]
[1757027787903,1.81644289,111570.0,111560.0,1e-08]
[1757027788123,1.50378865,111570.0,111560.0,1e-08]
[1757027788683,1.35218865,111570.0,111560.0,1e-08]
[1757027789031,1.45773997,111570.0,111560.0,1e-08]
[1757027790800,1.30613997,111570.0,111560.0,1e-08]
[1757027791084,0.56597668,111570.0,111560.0,0.00074001]
[1757027791295,0.54825714,111570.0,111560.0,0.00074001]
[1757027791550,1.01251138,111570.0,111560.0,0.00121001]
[1757027792023,1.01251138,111570.0,111560.0,0.00074001]
[1757027792478,0.86091138,111570.0,111560.0,0.00074001]
[1757027794706,0.86602138,111570.0,111560.0,0.00074001]
[1757027795121,0.86402138,111570.0,111560.0,0.00074001]
[1757027795559,1.01251138,111570.0,111560.0,0.00074001]
[1757027796428,1.01768138,111570.0,111560.0,0.00074001]
[1757027796657,1.01768138,111570.0,111560.0,1e-08]
[1757027797052,1.33033562,111570.0,111560.0,1e-08]
[1757027798076,1.01768138,111570.0,111560.0,1e-08]
[1757027800340,1.33033562,111570.0,111560.0,1e-08]
[1757027800998,1.01768138,111570.0,111560.0,1e-08]
[1757027801555,1.01247138,111570.0,111560.0,0.00074001]
[1757027801756,1.01295299,111570.0,111560.0,0.00074001]
[1757027801984,1.01812299,111570.0,111560.0,0.00074001]
[1757027803242,0.86656299,111570.0,111560.0,0.00074001]
[1757027803487,1.01812299,111570.0,111560.0,1e-08]
[1757027804824,1.11003898,111570.0,111560.0,1e-08]
[1757027805026,1.42269322,111570.0,111560.0,1e-08]
[1757027805496,1.01812299,111570.0,111560.0,1e-08]
[1757027805730,1.01812299,111570.0,111560.0,0.00074001]
[1757027806476,1.01808299,111570.0,111560.0,0.00074001]
[1757027807053,0.86456299,111570.0,111560.0,0.00074001]
[1757027807260,1.01608299,111570.0,111560.0,0.00074001]
[1757027807460,0.86171433,111570.0,111560.0,0.00074001]
[1757027807664,1.01323433,111570.0,111560.0,0.00074001]
[1757027808232,1.01640433,111570.0,111560.0,0.00074001]
[1757027808419,0.86488433,111570.0,111560.0,0.00074001]
[1757027808580,1.01640433,111570.0,111560.0,0.00074001]
[1757027810163,1.03320144,111570.0,111560.0,0.00074001]
[1757027810365,1.05455418,111570.0,111560.0,0.00074001]
[1757027811053,1.05455418,111570.0,111560.0,1e-08]
[1757027812033,1.59635674,111570.0,111560.0,1e-08]
[1757027812233,1.65098174,111570.0,111560.0,1e-08]
[1757027812442,0.87829998,111560.0,111550.0,1e-08]
[1757027812678,1.17878464,111560.0,111550.0,1e-08]
[1757027812808,1.27270063,111560.0,111550.0,1e-08]
[1757027813007,1.27587063,111560.0,111550.0,1e-08]
[1757027813636,1.61307109,111560.0,111550.0,1e-08]
[1757027813843,1.63442157,111560.0,111550.0,1e-08]
[1757027814279,0.20026276,111530.0,111520.0,8e-05]
[1757027814491,0.75663433,111530.0,111520.0,8e-05]
[1757027814672,0.76180433,111530.0,111520.0,8e-05]
[1757027815410,0.76539968,111530.0,111520.0,8e-05]
[1757027815620,0.76544695,111530.0,111520.0,8e-05]
[1757027816215,0.80580285,111530.0,111520.0,8e-05]
[1757027816482,0.89771884,111530.0,111520.0,8e-05]
[1757027816690,0.89971884,111530.0,111520.0,0.00108]
[1757027816915,0.9086004,111530.0,111520.0,0.00108]
[1757027817085,0.9096004,111530.0,111520.0,0.00208]
[1757027818143,0.5533496,111530.0,111520.0,0.00208]
[1757027818376,0.7048296,111530.0,111520.0,0.00208]
[1757027820075,0.24037402,111530.0,111520.0,0.00282]
[1757027820264,0.19484812,111530.0,111520.0,0.00282]
[1757027820473,0.6593037,111530.0,111520.0,0.00282]
[1757027821233,0.5078237,111530.0,111520.0,0.00282]
[1757027821446,0.19484812,111530.0,111520.0,0.00282]
[1757027821667,0.19484812,111530.0,111520.0,0.09744774]
[1757027821903,0.53484812,111530.0,111520.0,0.09744774]
[1757027822578,0.53484812,111530.0,111520.0,0.09697774]
[1757027823101,0.53484812,111530.0,111520.0,0.09473599]
[1757027823314,0.54001812,111530.0,111520.0,0.09473599]
[1757027823537,0.53484812,111530.0,111520.0,0.09473599]
[1757027823684,0.53484812,111530.0,111520.0,0.09697774]
[1757027825006,0.53484812,111530.0,111520.0,0.09473599]
[1757027825784,0.54001812,111530.0,111520.0,0.09473599]
[1757027826207,0.8529937,111530.0,111520.0,0.09473599]
[1757027826662,0.54001812,111530.0,111520.0,0.09473599]
[1757027827241,0.54001812,111530.0,111520.0,0.09399599]
[1757027827606,0.53996812,111530.0,111520.0,0.09399599]
[1757027827809,0.8529437,111530.0,111520.0,0.09399599]
[1757027828395,0.53484812,111530.0,111520.0,0.09473599]
[1757027828742,0.8529437,111530.0,111520.0,0.09399599]
[1757027829322,1.0043837,111530.0,111520.0,0.09399599]
[1757027829449,0.8529437,111530.0,111520.0,0.09399599]
[1757027829647,1.0043837,111530.0,111520.0,0.09399599]
[1757027830113,0.53996812,111530.0,111520.0,0.09399599]
[1757027830321,0.53484812,111530.0,111520.0,0.09473599]
[1757027831651,0.19484812,111530.0,111520.0,0.09697774]
[1757027831847,0.19484812,111530.0,111520.0,0.41042332]
[1757027832050,0.19125277,111530.0,111520.0,0.09473599]
[1757027832256,0.19125277,111530.0,111520.0,0.27407601]
[1757027832458,0.19125277,111530.0,111520.0,0.58752159]
[1757027833073,0.19125277,111530.0,111520.0,0.27454601]
[1757027833398,0.18825277,111530.0,111520.0,0.40571157]
[1757027833748,0.00204727,111530.0,111520.0,0.58952159]
[1757027834381,0.00104727,111530.0,111520.0,0.58752159]
[1757027834590,0.00204727,111530.0,111520.0,0.59052159]
[1757027835008,0.00104727,111530.0,111520.0,0.58852159]
[1757027835215,0.00204727,111530.0,111520.0,0.59052159]
[1757027835628,0.00104727,111530.0,111520.0,0.58852159]
[1757027835802,0.00204727,111530.0,111520.0,0.59152159]
[1757027836623,0.00104727,111530.0,111520.0,0.58852159]
[1757027837001,0.00204727,111530.0,111520.0,0.74345159]
[1757027837206,0.18137121,111530.0,111520.0,0.41271157]
[1757027837440,0.18137121,111530.0,111520.0,0.56411157]
[1757027837640,0.18649121,111530.0,111520.0,0.25039599]
[1757027839336,0.18649121,111530.0,111520.0,0.09899599]
[1757027839536,0.18649121,111530.0,111520.0,0.25039599]
[1757027840995,0.18649121,111530.0,111520.0,0.09899599]
[1757027841220,0.83946679,111530.0,111520.0,0.09899599]
[1757027841429,0.83946679,111530.0,111520.0,0.25039599]
[1757027842864,0.52649121,111530.0,111520.0,0.25039599]
[1757027848254,0.83946679,111530.0,111520.0,0.09899599]
[1757027848492,0.83946679,111530.0,111520.0,0.25035599]
[1757027850414,1.04423759,111530.0,111520.0,0.00708]
[1757027851252,1.04323759,111530.0,111520.0,0.00308]
[1757027851867,1.04423759,111530.0,111520.0,0.00408]
[1757027852636,1.08395119,111530.0,111520.0,0.00408]
[1757027852831,1.10991533,111530.0,111520.0,0.00108]
[1757027853172,1.11091533,111530.0,111520.0,0.00308]
[1757027855078,1.13027019,111530.0,111520.0,0.00308]
[1757027855254,1.15336843,111530.0,111520.0,0.00308]
[1757027855688,1.2414029,111530.0,111520.0,0.00308]
[1757027856062,1.3927229,111530.0,111520.0,0.00308]
[1757027858372,1.28242416,111530.0,111520.0,0.00308]
[1757027858592,1.43374416,111530.0,111520.0,0.00308]
[1757027859879,1.41178969,111530.0,111520.0,0.00308]
[1757027860373,0.87094507,111530.0,111520.0,0.00308]
[1757027860594,1.18392065,111530.0,111520.0,0.00308]
[1757027861489,1.14289939,111530.0,111520.0,0.00308]
[1757027861931,0.99157939,111530.0,111520.0,0.00308]
[1757027862148,1.10318579,111530.0,111520.0,0.00308]
[1757027862337,1.19510178,111530.0,111520.0,0.00308]
[1757027868114,1.19510178,111530.0,111520.0,0.00382]
[1757027868115,0.95186579,111530.0,111520.0,0.00382]
[1757027868307,0.71901021,111530.0,111520.0,0.00382]
[1757027868499,0.56769021,111530.0,111520.0,0.00382]
[1757027868724,0.71901021,111530.0,111520.0,0.00382]
[1757027869599,1.03543257,111530.0,111520.0,0.00382]
[1757027870037,1.03742257,111530.0,111520.0,0.00382]
[1757027870278,1.03742257,111530.0,111520.0,0.00308]
[1757027870725,1.35061493,111530.0,111520.0,0.00308]
[1757027870905,1.03742257,111530.0,111520.0,0.00308]
[1757027871289,1.35061493,111530.0,111520.0,0.00308]
[1757027871469,1.3725694,111530.0,111520.0,0.00308]
[1757027874341,1.35057493,111530.0,111520.0,0.00308]
[1757027874484,1.44249092,111530.0,111520.0,0.00308]
[1757027875575,0.8161062,111530.0,111520.0,0.00308]
[1757027875756,1.44249092,111530.0,111520.0,0.00308]
[1757027877300,1.45930611,111530.0,111520.0,0.00308]
[1757027877441,1.4667158,111530.0,111520.0,0.00308]
[1757027878293,1.48353093,111530.0,111520.0,0.00308]
[1757027880094,1.52770255,111530.0,111520.0,0.00308]
[1757027880299,1.95374972,111530.0,111520.0,1e-08]
[1757027880496,1.68105066,111530.0,111520.0,1e-08]
[1757027880856,1.68108373,111530.0,111520.0,1e-08]
[1757027881287,1.9763563,111530.0,111520.0,1e-08]
[1757027882676,1.8250763,111530.0,111520.0,1e-08]
[1757027882911,1.9763563,111530.0,111520.0,1e-08]
[1757027883614,0.54027884,111520.0,111510.0,1e-08]
[1757027883814,1.81219292,111520.0,111510.0,1e-08]
[1757027884030,1.98719328,111520.0,111510.0,1e-08]
[1757027884233,1.99078915,111520.0,111510.0,1e-08]
[1757027884436,1.83954915,111520.0,111510.0,1e-08]
[1757027884610,1.63710196,111520.0,111510.0,1e-08]
[1757027884828,1.67860752,111520.0,111510.0,1e-08]
[1757027885032,1.99279988,111520.0,111510.0,1e-08]
[1757027885419,2.01475435,111520.0,111510.0,1e-08]
[1757027885868,2.01375435,111520.0,111510.0,1e-08]
[1757027886085,2.01275435,111520.0,111510.0,1e-08]
[1757027886657,2.01375435,111520.0,111510.0,1e-08]
[1757027886863,1.99179988,111520.0,111510.0,1e-08]
[1757027887009,1.99379988,111520.0,111510.0,0.00100001]
[1757027887875,0.9029828,111520.0,111510.0,0.00100001]
[1757027888081,1.64852635,111520.0,111510.0,0.00100001]
[1757027888354,1.64852635,111520.0,111490.0,4e-05]
[1757027888355,0.54031101,111500.0,111490.0,4e-05]
[1757027888481,1.81939426,111500.0,111490.0,4e-05]
[1757027888683,1.90972288,111500.0,111490.0,4e-05]
[1757027889165,1.91331936,111500.0,111490.0,4e-05]
[1757027889549,1.64727455,111500.0,111490.0,0.00078]
[1757027889751,0.71458087,111500.0,111490.0,0.00078]
[1757027889962,1.34291559,111500.0,111490.0,0.00078]
[1757027890121,1.32509686,111500.0,111490.0,0.00078]
[1757027890328,1.8221212,111500.0,111490.0,4e-05]
[1757027890604,1.69583567,111500.0,111490.0,4e-05]
[1757027890855,1.84507567,111500.0,111490.0,4e-05]
[1757027891048,1.84807567,111500.0,111490.0,4e-05]
[1757027891646,1.69683567,111500.0,111490.0,4e-05]
[1757027891845,1.84807567,111500.0,111490.0,4e-05]
[1757027892081,1.88787269,111500.0,111490.0,4e-05]
[1757027892291,0.17942047,111470.0,111460.0,0.0004]
[1757027892498,0.49261283,111470.0,111460.0,0.0004]
[1757027892673,0.49261283,111470.0,111460.0,0.00114]
[1757027892916,0.6708264,111470.0,111460.0,0.00114]
[1757027893549,1.0118264,111470.0,111460.0,0.00114]
[1757027893753,1.0138264,111470.0,111460.0,0.00161243]
[1757027893960,0.8625864,111470.0,111460.0,0.00161243]
[1757027894181,0.52242047,111470.0,111460.0,0.40719078]
[1757027894418,0.52242047,111470.0,111460.0,0.43063078]
[1757027894622,0.53123462,111470.0,111460.0,0.43063078]
[1757027894822,0.53123462,111470.0,111460.0,0.61006734]
[1757027895176,0.53123462,111470.0,111460.0,0.11743842]
[1757027895381,0.84442698,111470.0,111460.0,0.11696842]
[1757027895594,0.84442698,111470.0,111460.0,0.09352842]
[1757027895796,1.08953297,111470.0,111460.0,0.00087243]
[1757027895985,1.47944164,111470.0,111460.0,0.00087243]
[1757027896184,1.16624928,111470.0,111460.0,0.00087243]
[1757027896430,1.47944164,111470.0,111460.0,0.00087243]
[1757027896649,1.47844164,111470.0,111460.0,0.00087243]
[1757027897070,1.40389533,111470.0,111460.0,0.00087243]
[1757027897492,1.10419982,111470.0,111460.0,0.00087243]
[1757027897712,0.95195982,111470.0,111460.0,0.00087243]
[1757027897995,1.10419982,111470.0,111460.0,0.00161243]
[1757027898174,1.10619982,111470.0,111460.0,0.00087243]
[1757027899468,1.10979678,111470.0,111460.0,0.00087243]
[1757027901463,1.12910953,111470.0,111460.0,0.00087243]
[1757027902503,1.12910953,111470.0,111450.0,1e-08]
[1757027902504,0.54037538,111460.0,111450.0,1e-08]
[1757027902625,1.64767657,111460.0,111450.0,0.00014084]
[1757027902828,1.65279657,111460.0,111450.0,0.00014084]
[1757027903055,1.38866176,111460.0,111450.0,0.00014084]
[1757027903451,1.53994176,111460.0,111450.0,0.00014084]
[1757027903663,1.54553918,111460.0,111450.0,0.00014084]
[1757027904305,1.39425918,111460.0,111450.0,1e-08]
[1757027904462,1.54553918,111460.0,111450.0,0.00074001]
[1757027904669,1.39425918,111460.0,111450.0,0.00074001]
[1757027905071,1.54553918,111460.0,111450.0,0.00074001]
[1757027906114,1.39425918,111460.0,111450.0,0.00074001]
[1757027906606,1.54553918,111460.0,111450.0,0.00074001]
[1757027907273,1.10003918,111460.0,111450.0,0.00074001]
[1757027908320,1.10003918,111460.0,111450.0,0.00074001]
[1757027908527,1.10003918,111460.0,111450.0,1e-08]
[1757027909361,1.11935112,111460.0,111450.0,1e-08]
[1757027910372,1.16033666,111460.0,111450.0,1e-08]
[1757027910757,1.16033769,111460.0,111450.0,1e-08]
[1757027913033,1.2731925,111460.0,111450.0,1e-08]
[1757027913529,1.30527367,111460.0,111450.0,1e-08]
[1757027913746,1.32723088,111460.0,111450.0,1e-08]
[1757027913964,1.34944803,111460.0,111450.0,1e-08]
[1757027914177,0.17951709,111410.0,111400.0,0.06777092]
[1757027914383,0.17951709,111410.0,111400.0,0.09403875]
[1757027914584,0.17951709,111410.0,111400.0,0.09477875]
[1757027915389,0.5062063,111410.0,111400.0,0.09477875]
[1757027915591,0.17951709,111410.0,111400.0,0.09477875]
[1757027916830,0.18965534,111410.0,111400.0,0.09477875]
[1757027917020,0.19165534,111410.0,111400.0,0.09477875]
[1757027917617,0.18965534,111410.0,111400.0,0.09477875]
[1757027918636,0.19165534,111410.0,111400.0,0.09477875]
[1757027920089,0.19165534,111410.0,111400.0,0.09524875]
[1757027920487,0.19165534,111410.0,111400.0,0.09477875]
[1757027921122,0.19165534,111410.0,111400.0,0.09702291]
[1757027921466,0.5054794,111410.0,111400.0,0.09702291]
[1757027921894,0.5074994,111410.0,111400.0,0.09702291]
[1757027922094,0.5054794,111410.0,111400.0,0.09477875]
[1757027922319,0.5054794,111410.0,111400.0,0.09702291]
[1757027923119,0.53246657,111410.0,111400.0,0.09702291]
[1757027924382,0.21864251,111410.0,111400.0,0.09702291]
[1757027924561,0.53246657,111410.0,111400.0,0.09702291]
[1757027925030,0.21864251,111410.0,111400.0,0.09702291]
[1757027926755,0.20950426,111410.0,111400.0,0.59085018]
[1757027926971,0.20950426,111410.0,111400.0,0.58860602]
[1757027927421,0.02998717,111410.0,111400.0,0.58860602]
[1757027927644,0.02998717,111410.0,111400.0,0.90243008]
[1757027928078,0.003,111410.0,111400.0,0.90243008]
[1757027928680,0.003,111410.0,111400.0,0.92665008]
[1757027930020,0.003,111410.0,111400.0,0.29900196]
[1757027930220,0.003,111410.0,111400.0,0.92665008]
[1757027931442,0.003,111410.0,111400.0,0.45028196]
[1757027931668,0.003,111410.0,111400.0,0.76400926]
[1757027938251,0.003,111410.0,111400.0,0.63366808]
[1757027938490,0.003,111410.0,111400.0,0.78494808]
[1757027938683,0.002,111410.0,111400.0,0.78494808]
[1757027939141,0.003,111410.0,111400.0,0.78494808]
[1757027939574,0.001,111410.0,111400.0,0.78494808]
[1757027939808,0.17950132,111420.0,111410.0,0.17951709]
[1757027940014,0.17950132,111420.0,111410.0,0.65106038]
[1757027940218,0.21857883,111430.0,111410.0,0.65106038]
[1757027940399,0.2379693,111430.0,111420.0,0.55692329]
[1757027940599,0.2399893,111430.0,111420.0,0.55666329]
[1757027940803,0.2399893,111430.0,111420.0,0.55566329]
[1757027941215,0.24709982,111430.0,111420.0,0.55566329]
[1757027941388,0.24912106,111430.0,111420.0,0.55566329]
[1757027941981,0.25212106,111430.0,111420.0,0.55566329]
[1757027942388,0.23272935,111430.0,111420.0,0.55566329]
[1757027942587,0.21046427,111430.0,111420.0,0.55566329]
[1757027942990,0.20746427,111430.0,111420.0,0.55566329]
[1757027943248,0.20960427,111430.0,111420.0,0.24193599]
[1757027943493,0.21262427,111430.0,111420.0,0.40564329]
[1757027943757,0.21262427,111430.0,111420.0,0.55688329]
[1757027944037,0.22261427,111430.0,111420.0,0.55888329]
[1757027947277,0.22261427,111430.0,111420.0,0.40764329]
[1757027947481,0.22261427,111430.0,111420.0,0.55888329]
[1757027948883,0.22261427,111430.0,111420.0,0.40764329]
[1757027949019,0.22261427,111430.0,111420.0,0.55888329]
[1757027956836,0.22261427,111430.0,111420.0,0.55962329]
[1757027958183,0.22261427,111430.0,111420.0,0.55888329]
[1757027962714,0.22261427,111430.0,111420.0,0.24515599]
[1757027963676,0.22261427,111430.0,111420.0,0.55888329]
[1757027964935,0.22059427,111430.0,111420.0,0.55962329]
[1757027965443,0.22258427,111430.0,111420.0,0.55962329]
[1757027965977,0.22258427,111430.0,111420.0,0.55888329]
[1757027968511,0.22258427,111430.0,111420.0,0.24515599]
[1757027968725,0.22258427,111430.0,111420.0,0.24511599]
[1757027971031,0.22258427,111430.0,111420.0,0.09391599]
[1757027971237,0.22258427,111430.0,111420.0,0.24511599]
[1757027973391,0.53631157,111430.0,111420.0,0.004]
[1757027973571,0.22258427,111430.0,111420.0,0.1552]
[1757027977260,0.22258427,111430.0,111420.0,0.004]
[1757027977580,0.22258427,111430.0,111420.0,0.1552]
[1757027982420,0.22258427,111430.0,111420.0,0.15516]
[1757027986607,0.56258427,111430.0,111420.0,0.15516]
[1757027988049,0.87631157,111430.0,111420.0,0.15516]
[1757027990702,0.87631157,111430.0,111420.0,0.004]
[1757027992070,1.02747157,111430.0,111420.0,0.004]
[1757027992270,1.13879825,111430.0,111420.0,0.004]
[1757027993558,1.45276309,111430.0,111420.0,0.004]
[1757027998509,0.67391095,111430.0,111420.0,0.004]
[1757027998632,0.55745427,111430.0,111420.0,0.00474]
[1757027998829,0.87441034,111430.0,111420.0,0.00474]
[1757027999034,0.87637034,111430.0,111420.0,0.00474]
[1757027999240,1.02753034,111430.0,111420.0,0.004]
[1757027999443,1.11944633,111430.0,111420.0,0.004]
[1757028000493,1.47464162,111430.0,111420.0,0.004]
[1757028001789,1.06887956,111430.0,111420.0,0.004]
[1757028002015,1.04692509,111430.0,111420.0,0.004]
[1757028002484,0.71172427,111430.0,111420.0,0.00474]
[1757028002693,1.02246034,111430.0,111420.0,0.00474]
[1757028003043,1.02753034,111430.0,111420.0,0.00474]
[1757028003391,0.56056427,111430.0,111420.0,0.00474]
[1757028003590,0.87130034,111430.0,111420.0,0.00474]
[1757028004823,0.87441034,111430.0,111420.0,0.00474]
[1757028005421,0.87130034,111430.0,111420.0,0.00474]
[1757028006452,0.55745427,111430.0,111420.0,0.00474]
[1757028006688,0.87130034,111430.0,111420.0,0.00474]
[1757028006874,0.87427034,111430.0,111420.0,0.00474]
[1757028007814,0.87637034,111430.0,111420.0,0.00474]
[1757028009386,0.87637034,111430.0,111420.0,0.004]
[1757028009961,0.56042427,111430.0,111420.0,0.00474]
[1757028010190,0.87427034,111430.0,111420.0,0.00474]
[1757028010602,0.87637034,111430.0,111420.0,0.00474]
[1757028010998,0.87637034,111430.0,111420.0,0.004]
[1757028014414,0.56252427,111430.0,111420.0,0.004]
[1757028014628,0.87637034,111430.0,111420.0,0.004]
[1757028016965,0.87637034,111430.0,111420.0,0.00474]
[1757028017745,0.87637034,111430.0,111420.0,0.004]
[1757028021154,1.02749034,111430.0,111420.0,0.004]
[1757028023570,1.34133641,111430.0,111420.0,0.004]
[1757028025230,1.3607341,111430.0,111420.0,0.004]
[1757028028209,1.38268857,111430.0,111420.0,0.004]
[1757028029598,1.38168857,111430.0,111420.0,0.002]
[1757028029784,1.38268857,111430.0,111420.0,0.003]
[1757028030113,1.47360456,111430.0,111420.0,0.001]
[1757028030331,1.47360456,111430.0,111420.0,0.003]
[1757028030546,1.47460456,111430.0,111420.0,0.003]
[1757028031193,1.47360456,111430.0,111420.0,0.002]
[1757028031335,1.58645937,111430.0,111420.0,0.002]
[1757028031542,1.58745937,111430.0,111420.0,0.004]
[1757028032151,1.98968259,111430.0,111420.0,1e-08]
[1757028032344,1.67583652,111430.0,111420.0,1e-08]
[1757028033007,2.01454259,111430.0,111420.0,1e-08]
[1757028033208,2.03878671,111430.0,111420.0,1e-08]
[1757028033412,1.14720923,111410.0,111400.0,1e-08]
[1757028033719,1.59091673,111410.0,111400.0,1e-08]
[1757028033919,1.62831658,111410.0,111400.0,1e-08]
[1757028034128,1.65531023,111410.0,111400.0,1e-08]
[1757028034329,1.62298038,111410.0,111400.0,1e-08]
[1757028034691,1.47186038,111410.0,111400.0,1e-08]
[1757028034884,1.93682645,111410.0,111400.0,1e-08]
[1757028035083,1.62298038,111410.0,111400.0,1e-08]
[1757028035450,1.62798038,111410.0,111400.0,1e-08]
[1757028035646,1.94182645,111410.0,111400.0,1e-08]
[1757028035833,1.98245228,111410.0,111400.0,1e-08]
[1757028038382,1.95820489,111410.0,111400.0,1e-08]
[1757028039137,2.40370489,111410.0,111400.0,1e-08]
[1757028041391,2.25258489,111410.0,111400.0,1e-08]
[1757028041748,2.40370489,111410.0,111400.0,1e-08]
[1757028043239,2.42795228,111410.0,111400.0,1e-08]
[1757028043736,2.27683228,111410.0,111400.0,1e-08]
[1757028043868,2.38378066,111410.0,111400.0,1e-08]
[1757028044257,2.35953327,111410.0,111400.0,1e-08]
[1757028044685,2.38378066,111410.0,111400.0,1e-08]
[1757028045669,2.40599781,111410.0,111400.0,1e-08]
[1757028045879,1.16988907,111410.0,111400.0,0.00074001]
[1757028046124,0.71703426,111410.0,111400.0,0.00074001]
[1757028046287,1.18200033,111410.0,111400.0,0.00074001]
[1757028046467,1.50260264,111410.0,111400.0,0.00074001]
[1757028046657,1.50260264,111410.0,111400.0,0.00121001]
[1757028047058,1.54452165,111410.0,111400.0,0.00074001]
[1757028047463,1.56700647,111410.0,111400.0,0.00074001]
[1757028047861,1.88281254,111410.0,111400.0,1e-08]
[1757028048069,1.88281254,111410.0,111400.0,0.00074001]
[1757028048302,1.87768254,111410.0,111400.0,0.00074001]
[1757028050091,1.2531604,111410.0,111400.0,0.00074001]
[1757028050299,1.88085254,111410.0,111400.0,0.00074001]
[1757028050825,1.88281254,111410.0,111400.0,0.00074001]
[1757028055306,1.73169254,111410.0,111400.0,1e-08]
[1757028055505,1.59331953,111410.0,111400.0,1e-08]
[1757028058855,1.44219953,111410.0,111400.0,1e-08]
[1757028059055,1.59331953,111410.0,111400.0,1e-08]
[1757028059252,1.44219953,111410.0,111400.0,1e-08]
[1757028059482,1.59331953,111410.0,111400.0,1e-08]
[1757028059965,1.58818953,111410.0,111400.0,0.00074001]
[1757028060389,1.43706953,111410.0,111400.0,0.00074001]
[1757028060604,0.59507295,111410.0,111400.0,0.00121001]
[1757028060802,0.57082556,111410.0,111400.0,0.00121001]
[1757028061242,0.8847773,111410.0,111400.0,0.00074001]
[1757028061847,0.22582556,111410.0,111400.0,0.00074]
[1757028062067,0.56682556,111410.0,111400.0,0.00121]
[1757028062274,0.56882556,111410.0,111400.0,0.00121]
[1757028062496,0.8827773,111410.0,111400.0,0.00074]
[1757028063438,0.8817773,111410.0,111400.0,0.00074]
[1757028063659,0.8827773,111410.0,111400.0,0.00174]
[1757028063871,0.8807773,111410.0,111400.0,0.00174]
[1757028064287,1.0328973,111410.0,111400.0,0.00174]
[1757028064503,1.0360673,111410.0,111400.0,0.00174]
[1757028065394,1.0380273,111410.0,111400.0,0.00174]
[1757028067187,1.0360673,111410.0,111400.0,0.00174]
[1757028067403,1.0360273,111410.0,111400.0,0.00174]
[1757028069015,0.56782556,111410.0,111400.0,0.00174]
[1757028071459,0.57100556,111410.0,111400.0,0.00174]
[1757028072288,0.8869873,111410.0,111400.0,0.00174]
[1757028072874,0.57303556,111410.0,111400.0,0.00174]
[1757028073097,0.8869873,111410.0,111400.0,0.00174]
[1757028073317,0.56782556,111410.0,111400.0,0.00174]
[1757028073547,0.57100556,111410.0,111400.0,0.00174]
[1757028073771,0.57303556,111410.0,111400.0,0.00174]
[1757028073995,0.8869873,111410.0,111400.0,0.00174]
[1757028074190,0.8869873,111410.0,111400.0,0.001]
[1757028074434,0.57303556,111410.0,111400.0,0.00174]
[1757028074636,0.8869873,111410.0,111400.0,0.00174]
[1757028075636,0.57303556,111410.0,111400.0,0.00174]
[1757028075841,0.56782556,111410.0,111400.0,0.40760773]
[1757028076048,0.54851074,111410.0,111400.0,0.58761094]
[1757028076266,0.54851074,111410.0,111400.0,0.40807773]
[1757028076709,0.54851074,111410.0,111400.0,0.09412599]
[1757028077255,0.54851074,111410.0,111400.0,0.09637015]
[1757028077525,0.54851074,111410.0,111400.0,0.09590015]
[1757028077701,0.54851074,111410.0,111400.0,0.24694015]
[1757028077918,0.54851074,111410.0,111400.0,0.24469599]
[1757028078295,0.20851074,111410.0,111400.0,0.24469599]
[1757028079553,0.20851074,111410.0,111400.0,0.4242292]
[1757028079999,0.02899365,111410.0,111400.0,0.73865094]
[1757028080286,0.002,111410.0,111400.0,0.73865094]
[1757028081084,0.002,111410.0,111400.0,0.4246992]
[1757028083109,0.18151709,111410.0,111400.0,0.4242292]
[1757028083566,0.002,111410.0,111400.0,0.4242292]
[1757028083791,0.002,111410.0,111400.0,0.4246992]
[1757028084279,0.002,111410.0,111400.0,0.73865094]
[1757028087419,0.17950116,111420.0,111410.0,0.17951709]
[1757028087658,0.56761067,111430.0,111410.0,0.27267704]
[1757028087946,0.56761067,111430.0,111420.0,0.24291599]
[1757028088154,0.56964067,111430.0,111420.0,0.24165599]
[1757028088570,0.56964067,111430.0,111420.0,0.24065599]
[1757028088795,0.21591486,111450.0,111430.0,0.17948485]
[1757028089010,0.0463536,111450.0,111440.0,0.73931985]
[1757028089251,0.01937788,111450.0,111440.0,0.7370765]
[1757028089452,0.21856225,111460.0,111440.0,0.8032365]
[1757028089662,0.22577882,111460.0,111450.0,0.151]
[1757028089867,0.20401495,111460.0,111450.0,0.09191599]
[1757028090072,0.54494056,111460.0,111450.0,0.24291599]
[1757028090267,0.54541364,111460.0,111450.0,0.24191599]
[1757028090491,0.55448389,111460.0,111450.0,0.09091599]
[1757028090659,0.89448389,111460.0,111450.0,0.24191599]
[1757028090877,0.89548389,111460.0,111450.0,0.24391599]
[1757028091457,0.89648389,111460.0,111450.0,0.24591599]
[1757028093053,0.89648389,111460.0,111450.0,0.09491599]
[1757028093269,0.8771155,111460.0,111450.0,0.24591599]
[1757028094090,0.8771155,111460.0,111450.0,0.09491599]
[1757028094305,0.8771155,111460.0,111450.0,0.24587599]
[1757028094934,0.56316376,111460.0,111450.0,0.24587599]
[1757028095774,0.56316376,111460.0,111450.0,0.09491599]
[1757028095981,0.85014163,111460.0,111450.0,0.24587599]
[1757028096639,0.85014163,111460.0,111450.0,0.09491599]
[1757028096862,0.85014163,111460.0,111450.0,0.24587599]
[1757028097480,0.85014163,111460.0,111450.0,0.19587599]
[1757028097897,0.53618989,111460.0,111450.0,0.19587599]